bitfinex-derivatives/quotes_SOLF0:USTF0_20241105
["timestamp","ask_amount","ask_price","bid_price","bid_amount"]
[1730780839718,3.1221,160.25,160.22,9.60104047]
[1730780844116,3.1221,160.25,160.22,12.72374047]
[1730780844315,3.1221,160.25,160.22,9.60104047]
[1730780845309,3.1219,160.26,160.22,12.72364047]
[1730780846518,12.72284047,160.27,160.23,3.1224]
[1730780846820,9.60104047,160.27,160.23,3.1224]
[1730780847020,9.60104047,160.27,160.22,9.60104047]
[1730780847220,9.60104047,160.27,160.22,12.72364047]
[1730780847221,3.1219,160.26,160.22,12.72364047]
[1730780848215,9.60104047,160.29,160.25,9.60104047]
[1730780848417,2.6501,160.31,160.12,6.249]
[1730780848418,12.25114047,160.31,160.26,9.60104047]
[1730780848726,10.96724047,160.31,160.25,12.50104047]
[1730780849028,3.1215,160.29,160.25,15.62304047]
[1730780849721,10.96724047,160.31,160.25,12.50104047]
[1730780850020,3.1212,160.3,160.26,3.1219]
[1730780851823,3.1213,160.29,160.25,15.62304047]
[1730780852224,3.1213,160.29,160.26,2.9]
[1730780852427,3.1213,160.29,160.27,9.60104047]
[1730780852728,10.96724047,160.31,160.27,9.60104047]
[1730780852925,3.1213,160.3,160.27,9.60104047]
[1730780853629,3.1214,160.29,160.27,9.60104047]
[1730780853829,3.1214,160.29,160.22,2.6907]
[1730780853830,9.60104047,160.29,160.24,9.60104047]
[1730780854039,3.1219,160.27,160.25,2.9]
[1730780854524,9.60104047,160.29,160.25,9.60104047]
[1730780854933,3.1216,160.28,160.25,9.60104047]
[1730780855429,3.1213,160.3,160.26,3.1219]
[1730780855621,10.96724047,160.31,160.25,9.60104047]
[1730780856032,9.60104047,160.32,160.26,9.60104047]
[1730780856333,9.60104047,160.32,160.27,9.60104047]
[1730780856721,3.1212,160.3,160.26,12.72274047]
[1730780856928,9.60104047,160.32,160.26,9.60104047]
[1730780857125,9.60104047,160.3,160.26,9.60104047]
[1730780857327,3.1214,160.29,160.26,9.60104047]
[1730780858436,3.1214,160.29,160.26,12.72294047]
[1730780859334,3.1212,160.3,160.26,12.72294047]
[1730780859528,9.60104047,160.32,160.26,9.60104047]
[1730780859927,7.25325812,160.36,160.31,9.60104047]
[1730780859928,3.1207,160.33,160.31,9.60104047]
[1730780860524,3.1205,160.34,160.32,9.60104047]
[1730780861133,3.1205,160.34,160.31,9.60104047]
[1730780861336,3.1205,160.34,160.31,12.50104047]
[1730780863136,9.60104047,160.36,160.31,12.50104047]
[1730780864235,3.1205,160.34,160.31,12.50104047]
[1730780865538,3.1206,160.33,160.31,12.50104047]
[1730780869435,9.60104047,160.36,160.31,12.50104047]
[1730780869635,3.1207,160.32,160.31,2.9]
[1730780870031,3.1211,160.3,160.28,9.60104047]
[1730780870237,3.1211,160.3,160.29,2.9]
[1730780870439,9.60104047,160.32,160.27,12.50104047]
[1730780870742,2.9,160.4,160.29,9.60104047]
[1730780870743,3.1211,160.31,160.29,9.60104047]
[1730780870942,9.60104047,160.35,160.3,9.60104047]
[1730780871341,3.1208,160.32,160.3,9.60104047]
[1730780872752,9.60104047,160.35,160.3,9.60104047]
[1730780873045,3.1206,160.33,160.3,9.60104047]
[1730780874948,9.60104047,160.37,160.3,9.60104047]
[1730780875148,3.1204,160.34,160.3,12.72214047]
[1730780875447,3.1204,160.34,160.3,9.60104047]
[1730780875647,3.1206,160.33,160.3,9.60104047]
[1730780877549,3.1206,160.33,160.31,9.60104047]
[1730780881849,3.1207,160.32,160.3,9.60104047]
[1730780882449,3.1206,160.33,160.3,9.60104047]
[1730780883655,3.1206,160.33,160.3,12.50104047]
[1730780889460,3.1212,160.3,160.29,2.9]
[1730780890362,9.60104047,160.33,160.29,2.9]
[1730780890665,9.60104047,160.33,160.28,2.9]
[1730780891162,3.1212,160.3,160.28,2.9]
[1730780892361,3.1212,160.3,160.28,12.50104047]
[1730780893261,3.1206,160.33,160.29,9.60104047]
[1730780893463,9.60104047,160.36,160.31,9.60104047]
[1730780894062,1.06648347,160.35,160.31,9.60104047]
[1730780894267,3.1209,160.32,160.31,9.60104047]
[1730780898170,3.1209,160.32,160.29,2.9]
[1730780898171,3.1209,160.32,160.29,12.50104047]
[1730780905870,3.1209,160.32,160.29,9.60104047]
[1730780916681,9.60104047,160.32,160.27,9.60104047]
[1730780916877,3.047191,160.34,160.21,77.36829381]
[1730780916878,9.60104047,160.28,160.21,86.96933428]
[1730780917079,8.637491,160.34,160.21,86.96933428]
[1730780917080,3.1222,160.25,160.21,85.58103428]
[1730780917785,3.1225,160.24,160.21,9.60104047]
[1730780918372,9.60104047,160.27,160.21,9.60104047]
[1730780918570,3.1222,160.25,160.21,9.60104047]
[1730780919181,9.60104047,160.28,160.23,9.60104047]
[1730780920073,3.122,160.26,160.23,9.60104047]
[1730780920770,9.60104047,160.28,160.23,9.60104047]
[1730780920977,9.60104047,160.29,160.24,9.60104047]
[1730780921177,9.60104047,160.31,160.26,9.60104047]
[1730780922281,9.60104047,160.31,160.24,9.60104047]
[1730780922478,2.6543,160.32,160.24,9.60104047]
[1730780922479,9.60104047,160.29,160.24,9.60104047]
[1730780923281,3.1216,160.28,160.24,9.60104047]
[1730780923788,3.1216,160.28,160.24,12.72334047]
[1730780925687,3.1216,160.28,160.24,9.60104047]
[1730780926183,3.1218,160.27,160.24,9.60104047]
[1730780931787,2.6543,160.32,160.21,9.60104047]
[1730780931788,3.1223,160.24,160.21,9.60104047]
[1730780935899,3.1226,160.23,160.21,9.60104047]
[1730780937193,3.1226,160.23,160.19,6.0232]
[1730780937194,9.60104047,160.26,160.2,9.60104047]
[1730780937787,3.1223,160.25,160.2,9.60104047]
[1730780937992,9.60104047,160.26,160.2,9.60104047]
[1730780938889,3.1227,160.23,160.2,9.60104047]
[1730780939090,9.60104047,160.22,160.17,9.60104047]
[1730780939498,3.1234,160.19,160.16,9.60104047]
[1730780939693,9.60104047,160.21,160.16,9.60104047]
[1730780940303,9.60104047,160.22,160.17,9.60104047]
[1730780940694,9.60104047,160.24,160.17,9.60104047]
[1730780941392,3.123,160.21,160.17,12.72464047]
[1730780942394,9.60104047,160.24,160.17,9.60104047]
[1730780942589,3.1227,160.22,160.19,9.60104047]
[1730780947401,9.60104047,160.26,160.21,9.60104047]
[1730780947603,12.22724047,160.3,160.24,9.60104047]
[1730780947809,2.6262,160.3,160.26,9.60104047]
[1730780948104,5.7475,160.3,160.26,9.60104047]
[1730780948302,2.6262,160.3,160.26,9.60104047]
[1730780950508,3.1214,160.29,160.26,9.60104047]
[1730780950909,12.72204047,160.31,160.26,12.72294047]
[1730780951110,12.72204047,160.31,160.26,15.62294047]
[1730780951501,3.1211,160.3,160.26,15.62294047]
[1730780951903,3.1211,160.3,160.26,12.50104047]
[1730780952102,3.1214,160.29,160.25,12.50104047]
[1730780952910,3.1214,160.29,160.25,9.60104047]
[1730780956511,3.1217,160.28,160.23,16.50164047]
[1730780958321,3.1217,160.28,160.24,3.1223]
[1730780959511,9.60104047,160.3,160.25,9.60104047]
[1730780959712,12.72224047,160.3,160.25,12.72304047]
[1730780960722,3.1213,160.29,160.25,12.72304047]
[1730780961323,3.1213,160.29,160.25,9.60104047]
[1730780962724,1.3393,160.33,160.23,19.62404047]
[1730780962725,3.1217,160.27,160.23,19.62404047]
[1730780963125,3.1217,160.27,160.23,15.62344047]
[1730780963527,12.72264047,160.28,160.23,15.62344047]
[1730780964422,3.1218,160.27,160.23,15.62344047]
[1730780970837,9.60104047,160.28,160.22,9.60104047]
[1730780971145,3.1222,160.25,160.23,2.9]
[1730780972734,9.60104047,160.28,160.23,2.9]
[1730780973140,9.60104047,160.27,160.2,12.72394047]
[1730780973339,9.60104047,160.25,160.2,15.62394047]
[1730780973738,3.1224,160.24,160.2,15.62394047]
[1730780974445,3.1228,160.22,160.19,12.50104047]
[1730780974636,9.60104047,160.24,160.19,2.9]
[1730780974837,9.60104047,160.22,160.19,2.9]
[1730780975032,3.1231,160.2,160.19,2.9]
[1730780975745,3.1232,160.2,160.16,15.62474047]
[1730780976342,3.1232,160.2,160.16,12.72474047]
[1730780976834,9.60104047,160.21,160.16,9.60104047]
[1730780977042,3.1234,160.19,160.16,9.60104047]
[1730780977642,9.60104047,160.21,160.15,15.62504047]
[1730780977840,9.60104047,160.21,160.15,12.72504047]
[1730780978339,9.60104047,160.2,160.15,12.72504047]
[1730780978541,3.1235,160.18,160.15,12.72504047]
[1730780979247,9.60104047,160.2,160.15,9.60104047]
[1730780979442,9.60104047,160.2,160.16,3.1238]
[1730780979443,3.1234,160.19,160.16,3.1238]
[1730780979641,9.60104047,160.2,160.15,9.60104047]
[1730780980043,3.1236,160.18,160.15,12.72514047]
[1730780981841,9.60104047,160.2,160.15,9.60104047]
[1730780982044,3.10270346,160.25,160.1,9.60104047]
[1730780982045,9.60104047,160.16,160.1,9.60104047]
[1730780982347,9.60104047,160.15,160.1,9.60104047]
[1730780982548,3.1245,160.13,160.1,9.60104047]
[1730780982945,9.60104047,160.15,160.1,9.60104047]
[1730780983145,3.1243,160.14,160.1,12.72594047]
[1730780985553,9.60104047,160.15,160.1,9.60104047]
[1730780985554,3.1245,160.13,160.1,9.60104047]
[1730780986146,9.60104047,160.15,160.1,9.60104047]
[1730780986343,3.1243,160.14,160.1,12.72604047]
[1730780990853,3.1239,160.16,160.12,3.1246]
[1730780991054,9.60104047,160.17,160.11,9.60104047]
[1730780991362,9.60104047,160.18,160.13,9.60104047]
[1730780991660,9.60104047,160.18,160.13,12.72534047]
[1730780992066,12.72454047,160.18,160.13,12.72534047]
[1730780992951,12.72454047,160.18,160.13,9.60104047]
[1730780993155,12.72454047,160.18,160.14,3.1242]
[1730780996565,9.60104047,160.18,160.14,3.1242]
[1730780996752,9.60104047,160.18,160.13,9.60104047]
[1730780996958,9.60104047,160.18,160.15,3.124]
[1730780997458,12.72464047,160.18,160.13,12.72544047]
[1730780998755,9.60104047,160.17,160.11,12.50104047]
[1730780998958,9.60104047,160.16,160.11,3.1248]
[1730780999358,3.1242,160.15,160.11,3.1248]
[1730780999563,9.60104047,160.14,160.1,6.025]
[1730780999758,9.60104047,160.14,160.1,3.125]
[1730781000967,12.72534047,160.14,160.1,3.125]
[1730781002259,3.1244,160.13,160.09,15.62614047]
[1730781003772,3.1244,160.13,160.1,3.125]
[1730781005069,9.60104047,160.16,160.1,9.60104047]
[1730781005374,3.1242,160.15,160.12,9.60104047]
[1730781005569,12.50104047,160.17,160.12,9.60104047]
[1730781005767,3.124,160.16,160.12,12.72554047]
[1730781005968,9.60104047,160.18,160.13,9.60104047]
[1730781006367,9.60104047,160.18,160.14,3.1242]
[1730781006368,3.1237,160.17,160.14,3.1242]
[1730781006866,9.60104047,160.18,160.14,3.1242]
[1730781007064,12.72454047,160.18,160.14,3.1242]
[1730781009574,9.60104047,160.18,160.14,3.1242]
[1730781011380,12.72434047,160.19,160.14,3.1242]
[1730781011876,12.72434047,160.19,160.15,12.72494047]
[1730781012679,12.72434047,160.19,160.14,3.1242]
[1730781012680,3.1235,160.18,160.14,3.1242]
[1730781013976,3.1237,160.17,160.13,3.1243]
[1730781014177,9.60104047,160.16,160.12,12.50104047]
[1730781014385,9.60104047,160.15,160.1,2.9]
[1730781014578,9.60104047,160.15,160.08,2.6931]
[1730781014579,9.60104047,160.13,160.08,3.1253]
[1730781014780,9.60104047,160.12,160.08,6.0253]
[1730781015086,9.60104047,160.12,160.07,76.04367635]
[1730781015378,9.60104047,160.12,160.07,78.94367635]
[1730781015882,3.1249,160.11,160.07,82.06917635]
[1730781016178,9.60104047,160.1,160.04,9.60104047]
[1730781016383,3.1256,160.08,160.04,12.72704047]
[1730781016885,3.1253,160.09,160.04,12.72704047]
[1730781017276,3.1253,160.09,160.05,3.126]
[1730781017976,3.1259,160.06,160.03,9.60104047]
[1730781018175,3.1259,160.06,160.01,2.9]
[1730781018176,9.60104047,160.06,160.01,2.9]
[1730781018980,3.1262,160.05,160.01,6.0268]
[1730781019285,12.72724047,160.05,160.01,2.9]
[1730781019874,3.1263,160.04,160.01,2.9]
[1730781020072,2.9,160.09,159.99,9.60104047]
[1730781020073,9.60104047,160.03,159.99,9.60104047]
[1730781020784,12.72764047,160.03,159.99,12.72824047]
[1730781022383,3.1266,160.02,159.99,9.60104047]
[1730781023281,3.1266,160.02,159.99,12.72824047]
[1730781023589,12.72754047,160.03,159.99,12.72824047]
[1730781024884,3.1266,160.02,159.98,12.72834047]
[1730781025082,9.60104047,160.02,159.98,9.60104047]
[1730781025279,9.60104047,160.02,159.97,2.9]
[1730781025480,3.127,160.0,159.96,12.72874047]
[1730781026882,3.1272,159.99,159.96,9.60104047]
[1730781027490,3.1272,159.99,159.96,12.72884047]
[1730781028492,9.60104047,160.01,159.96,12.72884047]
[1730781028681,3.127,160.0,159.96,12.72884047]
[1730781028991,9.60104047,160.03,159.98,3.1272]
[1730781029187,3.1267,160.02,159.98,3.1272]
[1730781030991,12.72714047,160.05,160.01,12.72784047]
[1730781031884,12.72714047,160.05,160.01,3.1268]
[1730781033491,9.60104047,160.05,160.01,3.1268]
[1730781036092,12.72714047,160.05,160.01,3.1268]
[1730781036384,9.60104047,160.04,159.99,2.9]
[1730781036781,3.1266,160.03,159.99,2.9]
[1730781037692,3.1266,160.03,159.99,6.0272]
[1730781037890,9.60104047,160.04,159.99,2.9]
[1730781038085,3.1262,160.04,159.99,12.50104047]
[1730781038293,3.1262,160.04,160.0,3.1269]
[1730781038681,9.60104047,160.05,160.0,3.1269]
[1730781038886,3.1264,160.03,160.0,3.1269]
[1730781039184,9.60104047,160.02,159.96,9.60104047]
[1730781039389,9.60104047,160.02,159.94,76.10034322]
[1730781039390,9.60104047,160.0,159.95,9.60104047]
[1730781039590,9.60104047,160.0,159.96,3.1276]
[1730781040391,12.72804047,160.0,159.96,3.1276]
[1730781041092,3.1272,159.99,159.96,3.1276]
[1730781042597,9.60104047,159.99,159.94,76.10034322]
[1730781043797,9.60104047,159.97,159.91,9.60104047]
[1730781044105,9.60104047,159.96,159.91,9.60104047]
[1730781044299,9.60104047,159.96,159.9,3.1288]
[1730781044300,3.1283,159.94,159.9,3.1288]
[1730781045402,12.72934047,159.94,159.9,3.1288]
[1730781047001,3.1284,159.93,159.9,3.1288]
[1730781047600,9.60104047,159.92,159.87,9.60104047]
[1730781048694,9.60104047,159.92,159.89,3.129]
[1730781049791,9.60104047,159.94,159.9,3.1289]
[1730781050099,1.375,160.01,159.93,9.60104047]
[1730781050100,9.60104047,159.99,159.93,9.60104047]
[1730781050294,12.50104047,159.99,159.93,9.60104047]
[1730781050502,15.62844047,159.99,159.95,3.1279]
[1730781051806,3.1274,159.98,159.94,3.1281]
[1730781052007,12.50104047,159.99,159.93,9.60104047]
[1730781052601,15.62824047,159.99,159.95,3.1279]
[1730781052899,12.72824047,159.99,159.95,3.1279]
[1730781053596,12.72824047,159.99,159.95,12.72894047]
[1730781053597,3.1272,159.99,159.95,12.72894047]
[1730781055294,14.10294047,160.01,159.97,3.1274]
[1730781055500,12.72794047,160.01,159.97,12.72844047]
[1730781055806,9.60104047,160.01,159.97,9.60104047]
[1730781056104,2.7984,160.02,159.97,9.60104047]
[1730781056504,5.925,160.02,159.98,3.1273]
[1730781057303,3.1266,160.02,159.98,3.1273]
[1730781057697,3.1266,160.02,159.97,12.72854047]
[1730781058807,12.72744047,160.03,159.99,3.1271]
[1730781059601,11.00884047,160.05,159.98,9.60104047]
[1730781059909,2.7578,160.12,160.03,9.60104047]
[1730781059910,9.60104047,160.08,160.03,9.60104047]
[1730781060101,2.7578,160.12,160.04,9.60104047]
[1730781060102,9.60104047,160.1,160.04,9.60104047]
[1730781060407,1.3973,160.12,160.04,9.60104047]
[1730781060408,9.60104047,160.11,160.04,9.60104047]
[1730781060612,9.60104047,160.11,160.06,9.60104047]
[1730781060901,3.125,160.1,160.06,9.60104047]
[1730781061106,9.60104047,160.1,160.05,3.1259]
[1730781062309,3.1253,160.09,160.05,3.1259]
[1730781063104,3.1253,160.09,160.05,6.0259]
[1730781063506,3.1253,160.09,160.05,3.1259]
[1730781071215,3.1256,160.07,160.04,2.9]
[1730781071717,3.1256,160.07,160.03,15.62734047]
[1730781073013,12.72634047,160.09,160.04,9.60104047]
[1730781073215,3.1253,160.09,160.04,9.60104047]
[1730781073519,3.1253,160.09,160.06,3.1258]
[1730781073915,3.1253,160.09,160.04,9.60104047]
[1730781074118,12.72634047,160.09,160.05,3.1259]
[1730781076117,3.1249,160.11,160.07,3.1256]
[1730781077426,3.125,160.1,160.07,3.1256]
[1730781077722,3.125,160.1,160.06,12.72684047]
[1730781077924,9.60104047,160.09,160.04,9.60104047]
[1730781078220,9.60104047,160.08,160.05,2.9]
[1730781078817,9.60104047,160.08,160.05,6.026]
[1730781081118,9.60104047,160.09,160.05,2.9]
[1730781081320,9.60104047,160.11,160.07,9.60104047]
[1730781081521,4.0613,160.13,160.07,9.60104047]
[1730781081522,13.66234047,160.13,160.07,9.60104047]
[1730781082119,3.1248,160.11,160.07,12.72654047]
[1730781083515,3.1247,160.12,160.08,3.1254]
[1730781083923,9.60104047,160.13,160.07,9.60104047]
[1730781084527,9.60104047,160.11,160.07,9.60104047]
[1730781084826,9.60104047,160.11,160.05,12.50104047]
[1730781085224,12.72584047,160.11,160.07,3.1256]
[1730781086023,3.125,160.1,160.06,3.1258]
[1730781086223,3.125,160.1,160.07,2.9]
[1730781087032,3.1252,160.09,160.07,2.9]
[1730781089229,3.1252,160.09,160.06,2.9]
[1730781090534,9.60104047,160.13,160.09,3.1251]
[1730781090830,9.60104047,160.13,160.08,9.60104047]
[1730781090831,9.60104047,160.14,160.08,9.60104047]
[1730781091033,9.60104047,160.14,160.06,2.9]
[1730781091034,3.125,160.11,160.07,3.1255]
[1730781092126,3.125,160.11,160.08,3.1254]
[1730781092325,3.125,160.11,160.08,12.72644047]
[1730781093237,3.1243,160.14,160.11,3.1248]
[1730781093538,9.60104047,160.15,160.1,9.60104047]
[1730781093829,3.1246,160.13,160.09,12.72614047]
[1730781094629,7.0786,160.18,160.08,9.60104047]
[1730781094630,9.60104047,160.14,160.08,9.60104047]
[1730781094830,7.0786,160.18,160.06,12.50104047]
[1730781094831,9.60104047,160.12,160.06,12.50104047]
[1730781095139,9.60104047,160.12,160.07,2.9]
[1730781096638,9.60104047,160.09,160.05,2.9]
[1730781096937,9.60104047,160.09,160.04,2.9]
[1730781097237,3.1257,160.07,160.04,2.9]
[1730781099325,3.1257,160.07,160.03,12.72734047]
[1730781099528,9.60104047,160.05,159.99,85.67768301]
[1730781099725,6.248,160.16,159.99,78.97664254]
[1730781099726,9.60104047,160.03,159.99,78.97664254]
[1730781100136,3.1266,160.02,159.99,78.97664254]
[1730781101038,3.1266,160.02,159.99,76.07664254]
[1730781101242,3.1266,160.02,159.98,12.72834047]
[1730781101243,9.60104047,160.02,159.98,2.9]
[1730781101437,9.60104047,160.02,159.96,15.62864047]
[1730781102036,3.1271,160.0,159.96,15.62864047]
[1730781103743,3.1271,160.0,159.97,3.1275]
[1730781106433,3.1268,160.01,159.96,12.50104047]
[1730781106745,3.1268,160.01,159.98,3.1274]
[1730781107141,3.1268,160.01,159.97,3.1274]
[1730781113348,9.60104047,160.15,160.0,9.60104047]
[1730781113649,10.96964047,160.15,160.08,9.60104047]
[1730781113851,3.1246,160.13,160.08,12.72634047]
[1730781114048,10.96964047,160.15,160.08,9.60104047]
[1730781114248,1.3686,160.15,160.1,9.60104047]
[1730781115249,4.4928,160.15,160.1,12.72584047]
[1730781115550,4.4928,160.15,160.1,3.1248]
[1730781115946,1.3306,160.17,160.13,3.1244]
[1730781116145,4.4314,160.18,160.11,17.91288718]
[1730781116146,1.3078,160.18,160.11,17.91288718]
[1730781116648,1.3078,160.18,160.14,3.1241]
[1730781118147,1.3078,160.18,160.13,3.1244]
[1730781119353,4.4313,160.18,160.13,3.1244]
[1730781119554,1.3078,160.18,160.11,21.03758718]
[1730781119952,3.1237,160.17,160.11,21.03758718]
[1730781120153,1.3078,160.18,160.11,15.01288718]
[1730781120352,1.3078,160.18,160.1,6.085]
[1730781120655,3.1241,160.15,160.1,6.085]
[1730781120851,3.1241,160.15,160.1,3.125]
[1730781121045,3.1245,160.13,160.08,3.1253]
[1730781121246,3.1245,160.13,160.09,2.96]
[1730781122157,3.1243,160.14,160.09,6.0852]
[1730781123158,3.1248,160.12,160.07,2.96]
[1730781123452,15.01288718,160.15,160.07,2.96]
[1730781123860,3.1249,160.11,160.07,2.96]
[1730781124253,3.1249,160.11,160.06,3.1257]
[1730781124555,3.1253,160.09,160.05,2.96]
[1730781124954,17.97288718,160.13,160.05,2.96]
[1730781125148,3.1251,160.1,160.05,6.0859]
[1730781125549,3.1251,160.1,160.05,3.1259]
[1730781128462,3.1252,160.09,160.05,3.1259]
[1730781131655,17.97288718,160.13,160.04,2.96]
[1730781131858,3.1258,160.06,160.04,2.96]
[1730781132952,3.1258,160.06,160.02,18.13928718]
[1730781137354,3.1262,160.04,160.03,9.60428346]
[1730781138563,3.1265,160.03,160.01,9.60428346]
[1730781138953,9.60428346,160.06,160.01,9.60428346]
[1730781139157,1.4161,160.07,159.98,9.60428346]
[1730781139158,9.60428346,160.04,159.98,9.60428346]
[1730781139371,1.4161,160.07,159.98,9.60428346]
[1730781139372,9.60428346,160.02,159.98,9.60428346]
[1730781139759,3.1271,160.0,159.96,15.69198346]
[1730781140253,3.1272,159.99,159.96,15.69198346]
[1730781140664,9.60428346,160.02,159.96,15.69198346]
[1730781140866,3.127,160.0,159.96,15.69198346]
[1730781141258,3.127,160.0,159.96,6.0877]
[1730781143056,15.01862229,160.16,159.96,17.97862229]
[1730781143258,3.1255,160.08,160.04,3.1261]
[1730781143461,15.01862229,160.13,160.02,15.01862229]
[1730781143770,3.1254,160.08,160.04,3.1261]
[1730781144365,3.1256,160.08,160.03,3.1262]
[1730781145461,3.1256,160.08,160.02,15.01862229]
[1730781145666,3.1256,160.08,160.04,3.1262]
[1730781149676,15.01862229,160.13,160.02,15.01862229]
[1730781149677,3.1258,160.06,160.02,3.1265]
[1730781150668,3.02,160.1,160.02,3.1265]
[1730781150875,3.02,160.1,160.04,3.126]
[1730781151471,3.1253,160.09,160.04,3.126]
[1730781151680,3.02,160.12,160.02,15.01862229]
[1730781152074,3.1253,160.09,160.02,15.01862229]
[1730781152276,3.02,160.12,160.02,15.01862229]
[1730781152477,3.02,160.12,160.0,15.01862229]
[1730781152478,15.01862229,160.1,160.0,15.01862229]
[1730781152678,15.01862229,160.1,160.0,18.03862229]
[1730781152978,3.1256,160.07,160.02,3.1265]
[1730781153166,15.01862229,160.1,160.02,3.1265]
[1730781153572,3.126,160.06,160.02,3.1265]
[1730781153781,15.01862229,160.1,160.0,21.16542229]
[1730781154083,3.1261,160.05,160.0,18.03862229]
[1730781154472,3.1261,160.05,160.01,3.1268]
[1730781154670,3.1264,160.04,160.0,3.02]
[1730781155083,3.1264,160.04,160.0,6.1468]
[1730781158775,1.2911,160.07,160.0,6.1468]
[1730781158974,3.1263,160.04,160.0,6.1468]
[1730781159870,3.1266,160.03,160.0,3.02]
[1730781160677,1.2911,160.07,159.95,15.01862229]
[1730781160678,15.01862229,160.06,159.95,15.01862229]
[1730781160870,3.1269,160.01,159.97,3.1275]
[1730781161587,3.1278,159.96,159.93,3.1282]
[1730781161884,15.01862229,159.99,159.92,1.3189]
[1730781162286,15.01862229,159.99,159.92,4.4474]
[1730781162681,3.1281,159.95,159.91,19.49792229]
[1730781162879,18.03862229,159.99,159.91,3.1287]
[1730781163083,18.03862229,159.99,159.89,15.01862229]
[1730781163280,1.3473,159.98,159.89,18.03862229]
[1730781163478,2.6871,159.98,159.89,18.03862229]
[1730781163674,3.1283,159.94,159.9,3.1289]
[1730781163877,3.1283,159.94,159.89,18.03862229]
[1730781164286,3.1283,159.94,159.89,21.16762229]
[1730781164478,3.1284,159.93,159.89,18.14762229]
[1730781164677,18.03862229,159.97,159.91,3.1287]
[1730781164884,18.03862229,159.97,159.89,15.01862229]
[1730781166384,3.1282,159.94,159.9,3.1288]
[1730781167884,18.03862229,159.97,159.89,15.01862229]
[1730781168093,3.1285,159.93,159.89,3.1291]
[1730781169295,3.1284,159.93,159.89,3.1291]
[1730781173999,3.1282,159.94,159.9,3.1288]
[1730781174292,3.1282,159.94,159.88,15.01862229]
[1730781174596,3.1282,159.94,159.9,3.1288]
[1730781174993,18.03862229,159.97,159.88,15.01862229]
[1730781175293,3.1282,159.94,159.91,3.1286]
[1730781175797,3.02,159.97,159.89,3.129]
[1730781175998,18.03862229,159.97,159.89,3.129]
[1730781176297,3.1285,159.93,159.89,3.129]
[1730781176791,15.01862229,159.95,159.87,3.1295]
[1730781177797,3.1289,159.9,159.86,7.4376]
[1730781177990,15.01862229,159.95,159.86,3.02]
[1730781178187,3.1288,159.91,159.86,3.02]
[1730781178387,4.0512,159.98,159.82,15.24770229]
[1730781178388,15.01862229,159.9,159.82,15.24770229]
[1730781178592,15.01862229,159.9,159.82,0.22908]
[1730781178593,16.38302229,159.9,159.82,0.22908]
[1730781179096,16.38302229,159.9,159.83,3.1303]
[1730781179097,3.1297,159.87,159.83,3.1303]
[1730781179399,16.38302229,159.9,159.82,0.22908]
[1730781179697,15.01862229,159.88,159.82,0.22908]
[1730781179897,2.98,159.87,159.82,0.22908]
[1730781180395,3.13,159.85,159.82,0.22908]
[1730781181297,3.1303,159.84,159.82,0.22908]
[1730781183506,2.98,159.87,159.82,0.22908]
[1730781183507,3.13,159.85,159.82,0.22908]
[1730781187102,3.13,159.85,159.81,3.1306]
[1730781189512,6.1096,159.87,159.83,3.1303]
[1730781189703,2.98,159.88,159.8,15.01862229]
[1730781189903,6.1094,159.88,159.83,3.1301]
[1730781190704,2.98,159.88,159.83,3.1301]
[1730781190900,3.1296,159.87,159.83,3.1301]
[1730781191300,1.3644,159.9,159.87,3.1294]
[1730781191500,5.851,159.91,159.84,15.01862229]
[1730781191501,1.3182,159.91,159.84,15.01862229]
[1730781191809,2.98,159.92,159.84,15.01862229]
[1730781192011,3.1288,159.91,159.84,15.01862229]
[1730781192307,2.98,159.92,159.82,15.01862229]
[1730781192715,3.1291,159.9,159.85,3.1299]
[1730781192909,2.98,159.92,159.84,15.01862229]
[1730781193115,6.1087,159.92,159.87,3.1294]
[1730781193509,2.98,159.92,159.85,2.98]
[1730781193710,17.99862229,159.92,159.85,2.98]
[1730781194505,3.1291,159.9,159.86,3.1297]
[1730781194814,3.1291,159.9,159.82,15.01862229]
[1730781194815,17.99862229,159.92,159.82,15.01862229]
[1730781195016,3.1295,159.88,159.83,3.1302]
[1730781196014,15.01862229,159.9,159.83,3.1302]
[1730781196214,3.1297,159.87,159.83,3.1302]